Cogmind - Beta 17 @@@ ROGUE MODE // 2026.07.07 @ 23:43:06 Player: IsAway Result: Destroyed by IS-OKO(R) with Subdweller Machine Gun Performance ------------- Evolutions (0) 0 Regions Visited (3) 600 Robots Destroyed (12) 60 Value Destroyed (230) 230 Prototype IDs (2) 40 Alien Tech Used (0) 0 Bonus (0) 0 TOTAL SCORE: 930 Bonus ------- None Cogmind --------- Core Integrity 0/250 Matter 173/300 Energy 264/265 System Corruption 9% Temperature Cool (9) Movement Rolling (115) Ox1 Location -10/Subcaves Parts ------- > --- POWER (1) -------- Reinforced Ion Engine > --- PROPULSION (2) --- Compact Wheel > --- UTILITY (2) ------ Large Storage Unit > --- WEAPON (2) ------- (None) > --- INVENTORY (15) --- Aluminum Leg Aluminum Leg VSS Leg Wheel Wheel Improved Heat Sink High-capacity Matter Pod (200) Compact Matter Pod (150) Improved Terrain Scanner Scrap Shield Medium Laser Plasma Cutter Peak State ------------ > --- POWER ------------ Reinforced Ion Engine > --- PROPULSION ------- Compact Wheel Compact Wheel > --- UTILITY ---------- Improved Heat Sink Large Storage Unit > --- WEAPON ----------- Shock Rifle Rocket Launcher > --- INVENTORY -------- Aluminum Leg Aluminum Leg VSS Leg Wheel Wheel High-capacity Matter Pod Compact Matter Pod Improved Terrain Scanner Seismic Detector Medium Armor Plating Medium Armor Plating Medium Laser Plasma Cutter [Rating: 15] Favorites ----------- Power Light Ion Engine Engine Light Ion Engine Propulsion Aluminum Leg Leg Aluminum Leg Wheel Compact Wheel Utility Seismic Detector Device Seismic Detector Storage Large Storage Unit Weapon Medium Laser Energy Gun Medium Laser Launcher Rocket Launcher Special Weapon Plasma Cutter Build | -11 -10 -10 -10 ------- Run | Yrd Mat Min Sub Slots Evolved . | . . . . Power . | . . . . Propulsion . | . . . . Utility . | . . . . Weapon . | . . . . Parts Attached 19 | 7 6 6 . Power 3 | 1 1 1 . Engine 3 | 1 1 1 . Core . | . . . . Reactor . | . . . . Propulsion 6 | 2 4 . . Treads . | . . . . Leg 2 | 2 . . . Wheel 4 | . 4 . . Hover . | . . . . Flight . | . . . . Utility 5 | 2 1 2 . Device 4 | 2 . 2 . Storage 1 | . 1 . . Processor . | . . . . Hackware . | . . . . Protection . | . . . . Artifact . | . . . . Weapon 5 | 2 . 3 . Energy Gun 3 | 2 . 1 . Energy Cannon . | . . . . Ballistic Gun . | . . . . Ballistic Cannon . | . . . . Launcher 1 | . . 1 . Special Weapon 1 | . . 1 . Impact Weapon . | . . . . Slashing Weapon . | . . . . Piercing Weapon . | . . . . Special Melee Weapon . | . . . . Unidentified Prototypes . | . . . . Corrupted Parts 1 | . . 1 . System Corruption 4 | . . 4 . Parts Lost 6 | . . 2 4 Power 1 | . . 1 . Propulsion 1 | . . . 1 Utility 1 | . . . 1 Weapon 3 | . . 1 2 Highest Loss Streak 4 | . . 1 4 To Critical Strikes . | . . . . Average Backups 3 | 1 5 11 12 Power . | . . . . Propulsion 2 | 1 3 4 5 Utility . | . 1 5 5 Weapon . | . . . 1 Tool/Special . | . . . . Unused Backups 7 | . . 1 6 Power . | . . . . Propulsion 1 | . . . 1 Utility 6 | . . 1 5 Weapon . | . . . . Tool/Special . | . . . . Average Slot Usage (%) 95 | . 100 94 97 Engine 13 | . 14 13 14 Wheel 27 | . 24 28 26 Device 14 | . 15 14 14 Storage 13 | . 12 14 14 Energy Gun 19 | . 28 17 14 Launcher 4 | . . 4 12 Peak Build Rating 15 | 9 9 15 15 Average Rating 8 | 8 7 9 14 On Entrance 8 | . 9 9 15 Avg Prop Armor Cover (%) . | . . . . Naked Turns . | . . . . Heaviest Build 39 | 9 35 39 38 Greatest Support 32 | 20 32 32 32 Greatest Overweight (x) 2 | . 1 1 2 Average Overweight (x) . | . . . 1 Largest Inventory Capacity 15 | 5 15 15 15 Average Capacity 6 | 5 14 15 15 Most Carried 15 | 2 10 15 15 Average Carried 3 | 1 5 11 13 Final Capacity 15 | 5 15 15 15 Final Carried 13 | 2 10 13 13 Class Distribution -------------------- 100% | Mutant Dominant Class ---------------- Mutant | -10/Materials Mutant | -10/Mines Mutant | -10/Subcaves Resources | -11 -10 -10 -10 ----------- Run | Yrd Mat Min Sub Matter Collected 777 | 270 . 507 . Remotely . | . . . . Salvage Created 302 | 138 24 140 . Parts 11 | 3 2 6 . Haulers Intercepted . | . . . . Recyclers Shooed . | . . . . Parts Field Recycled . | . . . . Retrieved Matter . | . . . . Parts Self-Destructed . | . . . . Prevented . | . . . . Parts Restored . | . . . . Kills | -11 -10 -10 -10 ------- Run | Yrd Mat Min Sub Combat Hostiles Destroyed 6 | 1 . 5 . Guns 6 | 1 . 5 . Classes Destroyed 5 | 3 1 1 . Worker 1 | 1 . . . Tunneler 4 | 4 . . . Watcher 1 | . 1 . . Swarmer 3 | . . 3 . Grunt 3 | 1 . 2 . Best Kill Streak 5 | 5 1 3 . Combat Bots Only 3 | 1 . 3 . Max Kills in Single Turn 2 | 1 1 2 . Gunslinging 1 | . . 1 . Exploded . | . . . . Melee . | . . . . Uniques/NPCs Destroyed . | . . . . Combat | -11 -10 -10 -10 -------- Run | Yrd Mat Min Sub Hostile Shots Fired 55 | 5 . 28 22 Missed 14 | 2 . 5 7 Hits 41 | 3 . 23 15 Projectile 41 | 3 . 23 15 AOE 3 | . . . 3 Critical Strikes 2 | . . 2 . Damage Taken 844 | 34 . 351 459 Core 257 | 11 . 45 201 Absorbed by Shields . | . . . . Core Remaining (%) 95 | 95 . . . Volleys Fired 48 | 12 2 33 1 Largest 2 | 2 2 2 1 Hottest 100 | 100 100 100 50 Shots Fired 75 | 24 4 46 1 Gun 58 | 24 4 29 1 Cannon . | . . . . Launcher 12 | . . 12 . Special 5 | . . 5 . Kinetic . | . . . . Thermal 62 | 24 4 34 . Explosive 12 | . . 12 . Electromagnetic 1 | . . . 1 Robot Hit Streak 5 | 5 1 5 2 Robot Miss Streak 2 | 2 1 2 . Penetration Max . | . . . . Secondary Targets 1 | . . 1 . Max Gunslinging Chain 1 | . . 1 . Shots Hit Robots 36 | 16 2 17 1 Core Hits 16 | 7 1 8 . Critical Kills . | . . . . Critical Parts Destroyed . | . . . . Critical Strikes 3 | 2 . 1 . Burn 3 | 2 . 1 . Melee Attacks . | . . . . Impact . | . . . . Slashing . | . . . . Piercing . | . . . . Sneak Attacks . | . . . . Combat Hostiles . | . . . . Follow-up Attacks . | . . . . Damage Inflicted 436 | 202 24 210 . Guns 436 | 202 24 210 . Cannons . | . . . . Explosions . | . . . . Melee . | . . . . Ramming . | . . . . Kinetic . | . . . . Thermal 436 | 202 24 210 . Explosive . | . . . . Electromagnetic . | . . . . Impact . | . . . . Slashing . | . . . . Piercing . | . . . . Highest Corruption 5 | . . 5 5 Average Corruption 4 | . . 3 5 Corruption Purged . | . . . . Corruption Blocked . | . . . . Effects 1 | . . 1 . Matter Fused 1 | . . 1 . Overload Shots . | . . . . Overflow Damage . | . . . . Projectiles . | . . . . Explosions . | . . . . Melee . | . . . . Knockbacks . | . . . . Impact . | . . . . Kinetic . | . . . . Secondary . | . . . . Self-Inflicted Damage 32 | . . 32 . Shots 2 | . . 2 . Rammed . | . . . . Targets Rammed . | . . . . Kicked . | . . . . Crushed . | . . . . Highest Temperature 513 | 390 78 513 7 Average Temperature 192 | 175 43 222 7 Received Heat Transfer 168 | 18 . 93 57 Effects 4 | 2 . 2 . Shutdowns 3 | 1 . 2 . Energy Bleed 1 | 1 . . . Siege Activations . | . . . . Martial Activations . | . . . . Shielding Activations . | . . . . Robots Disrupted . | . . . . Combat Hostiles . | . . . . Robots Corrupted . | . . . . Combat Hostiles . | . . . . Parts Fried . | . . . . Impact Corruptions . | . . . . Robots Melted . | . . . . Combat Hostiles . | . . . . Parts Melted 2 | 1 . 1 . Heat Transferred 1517 | 740 74 703 . Parts Sabotaged . | . . . . Parts Stolen . | . . . . Parts Stripped . | . . . . Power Chain Reactions . | . . . . Alert | -11 -10 -10 -10 ------- Run | Yrd Mat Min Sub Maximum Alert Level . | . . . . Low Security (%) 100 | 100 100 100 . Level 1 . | . . . . Level 2 . | . . . . Level 3 . | . . . . Level 4 . | . . . . Level 5 . | . . . . High Security . | . . . . Max Security . | . . . . Peak Influence 80 | 30 8 80 . Initial . | . . . . Average 3 | . 1 29 . Influence Increases 289 | 45 15 229 . Destroy 0b10 Robot/C 120 | 20 . 100 . Destroy 0b10 Robot/NC 30 | 25 5 . . Destroy Leader 22 | . 2 20 . Successful Hack 10 | . 8 2 . Disable Machine 60 | . . 60 . Destroy Structure 47 | . . 47 . Influence Decreases 289 | 45 15 200 29 Entered New Map 16 | . . . 16 Time Decay 253 | 45 15 180 13 Lost Part 20 | . . 20 . Squads Dispatched 1 | . 1 . . Investigation 1 | . 1 . . Extermination . | . . . . Reinforcement . | . . . . Assault . | . . . . Garrison . | . . . . Intercept . | . . . . Searches Triggered . | . . . . Construction Impeded . | . . . . Haulers Reinforced . | . . . . Active Scanning Responses . | . . . . Cargo Convoy Interrupts . | . . . . Stealth | -11 -10 -10 -10 --------- Run | Yrd Mat Min Sub Distress Signals . | . . . . Communications Jammed . | . . . . Distress Signals . | . . . . Times Spotted 20 | 1 3 5 11 Peak Tracking Total 10 | 1 3 3 10 Tactical Retreats . | . . . . Traps | -11 -10 -10 -10 ------- Run | Yrd Mat Min Sub Traps Triggered 3 | . 1 2 . Indirectly . | . . . . Trap Hack Attempts . | . . . . Triggered . | . . . . Disarmed . | . . . . Reprogrammed . | . . . . Reused . | . . . . Traps Extracted . | . . . . Installed . | . . . . Triggered . | . . . . Machines | -11 -10 -10 -10 ---------- Run | Yrd Mat Min Sub Machines Disabled 4 | . . 4 . Max in Single Turn 2 | . . 2 . Machines Repaired . | . . . . Machines Dismantled . | . . . . Machines Sabotaged . | . . . . Overloaded Fab Kills . | . . . . Hacking | -11 -10 -10 -10 --------- Run | Yrd Mat Min Sub Machines Accessed 4 | . 2 2 . Terminals 3 | . 2 1 . Fabricators . | . . . . Repair Stations . | . . . . Recycling Units . | . . . . Scanalyzers . | . . . . Garrison Access . | . . . . Total Hacks 8 | . 5 3 . Successful 8 | . 5 3 . Failed . | . . . . Catastrophic . | . . . . Database Lockouts . | . . . . Manual . | . . . . Terminals 7 | . 5 2 . Fabricators . | . . . . Repair Stations . | . . . . Recycling Units . | . . . . Scanalyzers . | . . . . Garrison Access . | . . . . Terminal Hacks 8 | . 5 3 . Record 2 | . 1 1 . Prototype ID Bank 1 | . 1 . . Open Door 1 | . . 1 . Level Access Points 1 | . 1 . . Alert Level 1 | . . 1 . Dispatch Records 1 | . 1 . . Maintenance Status 1 | . 1 . . Fabricator Hacks . | . . . . Repair Station Hacks . | . . . . Recycling Unit Hacks . | . . . . Scanalyzer . | . . . . Garrison Access Hacks . | . . . . Unauthorized Hacks . | . . . . Terminals . | . . . . Fabricators . | . . . . Repair Stations . | . . . . Recycling Units . | . . . . Scanalyzers . | . . . . Garrison Access . | . . . . Data Cores Recovered . | . . . . Used . | . . . . Hacking Detections 2 | . 1 1 . Full Trace Events . | . . . . Feedback Events . | . . . . Feedback Blocked . | . . . . Robot Schematics Acquired . | . . . . Robots Built . | . . . . Authchips . | . . . . Time . | . . . . Total Robot Build Rating . | . . . . Part Schematics Acquired . | . . . . Parts Built . | . . . . Authchips . | . . . . Time . | . . . . Total Part Build Rating . | . . . . Part Studies Acquired . | . . . . Parts Repaired . | . . . . Time . | . . . . Parts Recycled . | . . . . Recycled Matter . | . . . . Retrieved Matter . | . . . . Retrieved Components . | . . . . Parts Scanalyzed . | . . . . Part Schematics Acquired . | . . . . Parts Damaged . | . . . . Bothacking | -11 -10 -10 -10 ------------ Run | Yrd Mat Min Sub Used RIF Installer . | . . . . Robots Hacked . | . . . . Non-combat . | . . . . Combat . | . . . . Robot Hacks Applied . | . . . . Relay Couplers Released . | . . . . Fabnet Peak Effective % . | . . . . Robots Rewired . | . . . . Allies Hacked . | . . . . Hacks Repelled . | . . . . Allies | -11 -10 -10 -10 -------- Run | Yrd Mat Min Sub Total Allies . | . . . . Largest Group . | . . . . Highest-Rated Group . | . . . . Highest-Rated Ally . | . . . . Total Orders . | . . . . Ally Attacks . | . . . . Total Damage . | . . . . Kills . | . . . . Allies Corrupted . | . . . . Allies Melted . | . . . . Intel | -11 -10 -10 -10 ------- Run | Yrd Mat Min Sub Active Infowar (turns) 4457 | 3812 161 461 23 Terrain 3826 | 3812 14 . . Seismic 4454 | 3809 161 461 23 Robot Analysis Total . | . . . . Derelict Logs Recovered 3 | . . 3 . Drone Launches . | . . . . Drone Recoveries . | . . . . Exploration | -11 -10 -10 -10 ------------- Run | Yrd Mat Min Sub Turns Passed 4694 | 3954 161 491 88 Spaces Moved 677 | 164 132 322 59 Core 15 | 15 . . . Treads . | . . . . Legs 156 | 149 7 . . Wheels 506 | . 125 322 59 Hover . | . . . . Flight . | . . . . Fastest Speed 50 | 50 80 100 115 Average Speed 111 | 113 101 114 115 Slowest Speed 130 | 120 120 115 130 Overloaded Moves . | . . . . Propulsion Burnouts . | . . . . Robots Hopped . | . . . . Potential Cave-ins 2 | . . . 2 Cave-ins Triggered 1 | . . . 1 Exploration Rate (%) 30 | 9 24 83 6 Regions Visited 3 Branch Regions 2 Pre-discovered Areas 1 | . . 1 . Known Exits Taken . | . . . . Unknown Exits Taken 3 | 1 1 1 . Scrap Searched . | . . . . Spaces Dug 75 | . . 75 . Terrain Destroyed 113 | . . 113 . Melee . | . . . . Projectile . | . . . . AOE 113 | . . 113 . Terrain Rammed . | . . . . Walls Destroyed . | . . . . Machines Disabled . | . . . . Actions | -11 -10 -10 -10 --------- Run | Yrd Mat Min Sub Total 4527 | 3904 153 391 79 Wait 3758 | 3720 2 21 15 Move 673 | 163 131 321 58 Hop . | . . . . Pick Up 20 | 2 10 7 1 Fast Attach 7 | 7 . . . Attach 3 | . . 3 . Detach . | . . . . Swap 11 | . 6 4 1 Drop 6 | . 2 2 2 Fire 48 | 12 2 33 1 Melee . | . . . . Ram . | . . . . Kick . | . . . . Crush . | . . . . Escape Stasis 1 | . . . 1 Rewire . | . . . . Trap . | . . . . Miscellaneous . | . . . . Route ------- -11/Scrapyard -10/Materials (discovered 4 exits: Mat x3 / *Min) -10/Mines (discovered 3 exits: *Mat x2 / [*Sub]) -10/Subcaves History --------- Turn | Location | Event 2 | -11/Scrapyard | Met Revision 17 99 | -11/Scrapyard | Discovered new exit (range 8) 3955 | -11/Scrapyard | Entered Materials 3956 | -10/Materials | Build established: Mutant 3978 | -10/Materials | Identified exit to Materials 4077 | -10/Materials | Discovered new exit (range 16) 4116 | -10/Materials | Entered Mines 4117 | -10/Mines | Learned location of Storage (-9) 4299 | -10/Mines | Learned Materials machine intel 4372 | -10/Mines | Discovered exit to Materials (range 14) 4434 | -10/Mines | Discovered exit to Materials (range 8) 4441 | -10/Mines | Received a Rocket Launcher from a helpful Derelict 4570 | -10/Mines | Learned Materials emergency access door positions 4572 | -10/Mines | Met a Derelict who couldn't figure out how to use a Trap Extractor 4599 | -10/Mines | Discovered new exit (range 7) 4607 | -10/Mines | Entered Subcaves 4682 | -10/Subcaves | Ambushed by swarm of Subdwellers 4685 | -10/Subcaves | Ambushed by Subdwellers from Twisted Machinery 4685 | -10/Subcaves | Ambushed by Subdwellers from Twisted Machinery 4685 | -10/Subcaves | Ambushed by Subdwellers from Twisted Machinery 4691 | -10/Subcaves | Core integrity fell below 50% 4693 | -10/Subcaves | Core integrity fell below 20% 4695 | -10/Subcaves | Crushed by falling debris 4695 | -10/Subcaves | Destroyed by IS-OKO(R) with Subdweller Machine Gun Last Messages --------------- 4K-Z3I(R) angrily emerges from the Twisted Machinery. LV-37F(R) angrily emerges from the Twisted Machinery. TS-DOQ(R) emerges from the Twisted Machinery. Rocket Launcher destroyed. FZ-NXC(R) emerges from the Twisted Machinery. IS-OKO(R) emerges from the Twisted Machinery. R7-I31(g): "Sorry we're late! Had another grouchy Sub to deal with. Who's the new fellow?" Com. Wheel destroyed. FZ-NXC(R) destroyed. 24-OR8(g) destroyed. R7-I31(g) destroyed. Shock Rifle destroyed. ZY-5GL(g) destroyed. The unstable cave ceiling collapses. Crushed by falling debris. Seismic Detector destroyed. System corrupted by crushing effect (+4). Map ----- +----------------------------------------------------+ | ?????????????????????????????????????????????????? | | ?????????????????????????????????????????????????? | | ?????????????????????????????????????????????????? | | ?????????????????????????????????????????????????? | | ?????????????????????????????????????????????????? | | ?????????????????????????????????????????????????? | | ?????????????????????????????????????????????????? | | ?????????????????????????????????????????????????? | | ?????????????????????????????????????????????????? | | ?????????????????????????????????????????????????? | | ??????????????????####???????????????????????????? | | ???????????????#### #???????????????????????????? | | ??????????????## #???????????????????????????? | | ?????????????## ####????????????????#???????? | | ????????????## #??????????????? ##??????? | | ????????????# #????####?????? ###????? | | ????????????# #???## ##???? #????? | | ????????????# #???# ##### #????? | | ???????????## ## ##### RR ??????? | | ???????????# ####h # ; RR[ #????????? | | ???????????# ##??## RR%& #??????????? | | ???????????## #???## %!%= *!" #??????????? | | ???????????# #???# ;* % #????????????? | | ???????????## ##?##; "###????????????? | | ??????????## ### ; """""#??????????????? | | ?????????## ### ; @## ##??????????????? | | ?????????# ## ; #########???????????????? | | ?????????# ########?????????????????????? | | ?????????# #????????????????????????????? | | ?????????# ##????????????????????????????? | | ?????????# ##?????????????????????????????? | | ?????????# #??????????????????????????????? | | ?????????## ##??????????????????????????????? | | ??????????# ###???????????????????????????????? | | ??????????# ##?????????????????????????????????? | | ?????????## #??????????????????????????????????? | | ?????????# #??????????????????????????????????? | | ?????????# ######?????????????????????????????? | | ?????????# #?????????????????????????????? | | ????????## #?????????????????????????????? | | ????????# #?????????????????????????????? | | ????????# #?????????????????????????????? | | ????????# #?????????????????????????????? | | ????????##!! #?????????????????????????????? | | ?????????# ## #?????????????????????????????? | | ????????## ## #?????????????????????????????? | | ????????# ##?# ##?????????????????????????????? | | ????????## #?? #??????????????????????????????? | | ?????????# ##?? #??????????????????????????????? | | ????????? ??? #??????????????????????????????? | +----------------------------------------------------+ Best States ------------- Heat Dissipation 39 Energy Generation 12 Energy Capacity 265 Matter Stores 300 Matter Capacity 300 Sight Range 16 Terrain Scan Range 16 Terrain Scan Density 10 Evasion (%) 55 Trap Extractor Capacity 6 Item Schematics ----------------- None Robot Schematics ------------------ None Fabricated ------------ Nothing Repaired ---------- Nothing Studied --------- None Alien Tech Used ----------------- None Achievements -------------- Well Done Challenges ------------ None Game ------ Seed MomentumOpticalInterrupter Manual? 0 Play Time 00:27:18 Cumulative 6.2 hours Start 2026.07.07 @ 23:13:17 End 2026.07.07 @ 23:43:06 Sessions 1 Manual Loads 0 Difficulty Rogue Special Mode None Game No. 3 Rogue 3 Adventurer 0 Explorer 0 Win Type - Total 0 Types 0/0/0/0/0/0/0/0/0/0 Lore% 2 Gallery% 7 Achievement% 8 Wizard Run 0 Options --------- Layout 1 ASCII 0 Keyboard 0 Movement Mouse Keybinds 0 Fullscreen 1 Font 18/SmallcapsGlow Map View 51x41 Zoom Use 0% Tactical HUD 0 Map Filters NONE Filters NONE Steam 1 RUN: cb43ac89-8aa1-47f5-b33e-6c06c811403b